[Event "DPEM German Cup 2022"]
[Site "Magdeburg"]
[Date "2022.08.18"]
[Round "2.6"]
[White "Goergens, Michael"]
[Black "Mueer, Sebastian"]
[Result "0-1"]
[ECO "B50"]
[WhiteElo "2073"]
[BlackElo "2161"]
[Annotator "NA RC"]
[PlyCount "122"]
[EventDate "2022.08.10"]
[EventType "k.o."]
[EventCountry "GER"]
[SourceTitle "playchess.com"]
[Source "ChessBase"]
[SourceQuality "1"]
[TimeControl "40/5400+30:900+30"]

1. e4 {[%emt 0:00:04]} c5 {[%emt 0:05:21]} 2. Nc3 {[%emt 0:00:16]} d6 {[%emt 0:00:46]} 3. Nf3 {[%emt 0:00:26]} Nf6 {[%emt 0:00:40]} 4. h3 {[%emt 0:03:17]} g6 {[%emt 0:04:09]} 5. d3 {[%emt 0:00:18]} Nc6 {[%emt 0:00:59]} 6. Be3 {[%emt 0:00:40]} Bg7 {[%emt 0:01:39]} 7. Qd2 {[%emt 0:01:14]} h6 {[%emt 0:11:28]} 8. g3 {[%emt 0:04:15]} e5 {[%emt 0:01:54]} 9. Bg2 {[%emt 0:01:02]} Be6 {[%emt 0:02:50]} 10. Nd1 {[%emt 0:04:08]} b5 {[%emt 0:03:05]} 11. O-O {[%emt 0:03:06]} Qd7 {[%emt 0:01:07]} 12. Kh2 {[%emt 0:00:15]} Nh5 {[%emt 0:21:00]} 13. Ng1 {[%emt 0:07:18]} f5 {[%emt 0:04:35]} 14. exf5 {[%emt 0:04:44]} gxf5 {[%emt 0:00:11]} 15. Qe2 {[%emt 0:01:24]} Nf6 {[%emt 0:01:15]} 16. f4 {[%emt 0:01:50]} e4 {[%emt 0:04:53]} 17. Re1 {[%emt 0:08:26]} O-O {[%emt 0:04:39]} 18. Nf2 {[%emt 0:01:16]} exd3 {[%emt 0:03:41]} 19. cxd3 {[%emt 0:08:24]} Rfe8 {[%emt 0:01:56]} 20. Nd1 {[%emt 0:05:33]} Rab8 {[%emt 0:02:48]} 21. a3 {[%emt 0:01:58]} Bf7 {[%emt 0:04:35]} 22. Qd2 {[%emt 0:03:15]} Nd5 {[%emt 0:02:20]} 23. Nc3 {[%emt 0:06:57]} Nxe3 {[%emt 0:00:54]} 24. Rxe3 {[%emt 0:00:14]} Rxe3 {[%emt 0:00:50]} 25. Qxe3 {[%emt 0:00:08]} Nd4 {[%emt 0:01:29]} 26. Qf2 {[%emt 0:01:46]} d5 {[%emt 0:02:54]} 27. Nf3 {[%emt 0:02:22]} Nxf3+ {[%emt 0:01:11]} 28. Bxf3 {[%emt 0:01:52]} d4 {[%emt 0:00:06]} 29. Nd1 {[%emt 0:02:46]} c4 {[%emt 0:00:42]} 30. Qd2 {[%emt 0:04:21]} Re8 {[%emt 0:02:36]} 31. Rc1 {[%emt 0:03:44]} Qe7 {[%emt 0:03:43]} 32. Kg2 {[%emt 0:02:34]} Rc8 {[%emt 0:02:07]} 33. Qa5 {[%emt 0:04:16]} Rc5 {[%emt 0:01:21]} 34. Nf2 {[%emt 0:05:15]} Qc7 {[%emt 0:01:45]} 35. Qa6 {[%emt 0:02:20]} Kh7 {[%emt 0:01:03]} 36. Re1 {[%emt 0:01:53]} Bd5 {[%emt 0:01:21]} 37. Bxd5 {[%emt 0:00:38]} Rxd5 {[%emt 0:00:01]} 38. Qe6 {[%emt 0:00:40]} Qd7 {[%emt 0:00:38]} 39. Qxd7 {[%emt 0:00:40]} Rxd7 {[%emt 0:00:01]} 40. Rc1 {[%emt 0:01:42]} c3 {[%emt 0:00:11]} 41. b3 {[%emt 0:15:55]} Bf8 {[%emt 0:16:26]} 42. g4 {[%emt 0:01:36]} Bxa3 {[%emt 0:00:00]} 43. Rc2 {[%emt 0:00:00]} Re7 {[%emt 0:00:00]} 44. gxf5 {[%emt 0:00:00]} Re3 {[%emt 0:00:00]} 45. Kf1 {[%emt 0:00:00]} a5 {[%emt 0:00:00]} 46. Ne4 {[%emt 0:00:00]} Kg7 {[%emt 0:00:00]} 47. Nxc3 {[%emt 0:00:00]} dxc3 {[%emt 0:00:00]} 48. Rxc3 {[%emt 0:00:00]} b4 {[%emt 0:00:00]} 49. Rc7+ {[%emt 0:00:00]} Kf6 {[%emt 0:00:00]} 50. Rc6+ {[%emt 0:00:00]} Kxf5 {[%emt 0:00:00]} 51. Rxh6 {[%emt 0:00:00]} Kxf4 {[%emt 0:00:00]} 52. Rd6 {[%emt 0:00:00]} Rxh3 {[%emt 0:00:00]} 53. Kg2 {[%emt 0:01:54]} Rh5 {[%emt 0:00:00]} 54. Rd8 {[%emt 0:01:09]} Ke3 {[%emt 0:00:04]} 55. d4 {[%emt 0:00:17]} Ke4 {[%emt 0:01:34]} 56. Kf2 {[%emt 0:01:05]} Rh2+ {[%emt 0:00:22]} 57. Kg3 {[%emt 0:00:50]} Rd2 {[%emt 0:00:15]} 58. Ra8 {[%emt 0:00:17]} Kxd4 {[%emt 0:00:28]} 59. Kf3 {[%emt 0:00:40]} Kc3 {[%emt 0:00:09]} 60. Rxa5 {[%emt 0:00:11]} Kxb3 {[%emt 0:00:33]} 61. Ke3 {[%emt 0:00:07]} Rd8 {[%emt 0:00:08]} 0-1

[Event "DPEM German Cup 2022"]
[Site "Magdeburg"]
[Date "2022.08.18"]
[Round "2.7"]
[White "Wong, Gengchun"]
[Black "Noetzel, Felix"]
[Result "0-1"]
[ECO "B36"]
[WhiteElo "2114"]
[BlackElo "2124"]
[Annotator "NA RC"]
[PlyCount "104"]
[EventDate "2022.08.10"]
[EventType "k.o."]
[EventCountry "GER"]
[SourceTitle "playchess.com"]
[Source "ChessBase"]
[SourceQuality "1"]
[TimeControl "40/5400+30:900+30"]

1. e4 {[%emt 0:00:03]} c5 {[%emt 0:00:09]} 2. Nf3 {[%emt 0:00:04]} Nc6 {[%emt 0:00:04]} 3. d4 {[%emt 0:00:51]} cxd4 {[%emt 0:00:05]} 4. Nxd4 {[%emt 0:00:03]} g6 {[%emt 0:00:16]} 5. c4 {[%emt 0:00:27]} Nf6 {[%emt 0:00:36]} 6. Nc3 {[%emt 0:00:21]} d6 {[%emt 0:00:08]} 7. Be2 {[%emt 0:00:26]} Nxd4 {[%emt 0:00:06]} 8. Qxd4 {[%emt 0:00:04]} Bg7 {[%emt 0:00:06]} 9. Be3 {[%emt 0:00:28]} O-O {[%emt 0:00:11]} 10. Qd2 {[%emt 0:00:05]} Be6 {[%emt 0:00:15]} 11. O-O {[%emt 0:01:13]} Qa5 {[%emt 0:00:46]} 12. f3 {[%emt 0:03:15]} Rfc8 {[%emt 0:00:41]} 13. b3 {[%emt 0:02:33]} a6 {[%emt 0:07:47]} 14. Rab1 {[%emt 0:05:13]} b5 {[%emt 0:05:04]} 15. b4 {[%emt 0:06:32]} Qc7 {[%emt 0:02:29]} 16. Nd5 {[%emt 0:00:41]} Nxd5 {[%emt 0:04:22]} 17. exd5 {[%emt 0:37:49]} Bf5 {[%emt 0:01:03]} 18. cxb5 {[%emt 0:04:26]} Bxb1 {[%emt 0:17:18]} 19. b6 {[%emt 0:10:57]} Qc2 {[%emt 0:27:31]} 20. b7 {[%emt 0:01:19]} Qxd2 {[%emt 0:00:19]} 21. Bxd2 {[%emt 0:00:41]} Bd4+ {[%emt 0:00:08]} 22. Kh1 {[%emt 0:00:04]} Bxa2 {[%emt 0:00:52]} 23. Bxa6 {[%emt 0:01:01]} Rcb8 {[%emt 0:02:25]} 24. bxa8=Q {[%emt 0:01:22]} Rxa8 {[%emt 0:00:04]} 25. Bb7 {[%emt 0:00:18]} Ra3 {[%emt 0:06:31]} 26. Rc1 {[%emt 0:09:50]} h5 {[%emt 0:03:50]} 27. h4 {[%emt 0:02:35]} Rd3 {[%emt 0:04:29]} 28. Be1 {[%emt 0:02:12]} Bb6 {[%emt 0:12:57]} 29. Rc6 {[%emt 0:07:16]} Bd4 {[%emt 0:01:32]} 30. Rc1 {[%emt 0:00:41]} Bb6 {[%emt 0:00:06]} 31. Rc6 {[%emt 0:00:05]} Rd1 {[%emt 0:00:37]} 32. Rxb6 {[%emt 0:00:04]} Rxe1+ {[%emt 0:00:03]} 33. Kh2 {[%emt 0:00:08]} Kg7 {[%emt 0:00:38]} 34. Bc6 {[%emt 0:02:04]} Rd1 {[%emt 0:00:56]} 35. Rb5 {[%emt 0:00:29]} Kf6 {[%emt 0:00:32]} 36. Ra5 {[%emt 0:01:06]} Bc4 {[%emt 0:00:39]} 37. Kg3 {[%emt 0:00:23]} Rd2 {[%emt 0:00:05]} 38. Kf4 {[%emt 0:01:39]} Rxg2 {[%emt 0:02:07]} 39. Ke3 {[%emt 0:00:17]} Rb2 {[%emt 0:00:41]} 40. Kd4 {[%emt 0:00:22]} Be2 {[%emt 0:01:25]} 41. Kc3 {[%emt 0:15:29]} Rb1 {[%emt 0:03:25]} 42. Ra2 {[%emt 0:00:00]} Bf1 {[%emt 0:07:31]} 43. Rb2 {[%emt 0:00:00]} Rxb2 {[%emt 0:00:06]} 44. Kxb2 {[%emt 0:00:00]} g5 {[%emt 0:00:09]} 45. hxg5+ {[%emt 0:00:00]} Kxg5 {[%emt 0:00:01]} 46. b5 {[%emt 0:00:00]} h4 {[%emt 0:02:51]} 47. b6 {[%emt 0:00:00]} Ba6 {[%emt 0:00:03]} 48. Bb5 {[%emt 0:00:00]} Bb7 {[%emt 0:00:10]} 49. Bc6 {[%emt 0:00:19]} h3 {[%emt 0:00:22]} 50. Bxb7 {[%emt 0:01:04]} h2 {[%emt 0:00:04]} 51. Bc8 {[%emt 0:00:30]} h1=Q {[%emt 0:00:07]} 52. b7 {[%emt 0:00:02]} Qg2+ {[%emt 0:00:33]} 0-1

[Event "DPEM German Cup 2022"]
[Site "Magdeburg"]
[Date "2022.08.19"]
[Round "3.1"]
[White "Heinrich, Julius Tobias"]
[Black "Malinowsky, Levi"]
[Result "1/2-1/2"]
[ECO "B22"]
[WhiteElo "2074"]
[BlackElo "1814"]
[Annotator "TA"]
[PlyCount "84"]
[EventDate "2022.08.10"]
[EventType "k.o."]
[EventCountry "GER"]
[SourceTitle "playchess.com"]
[Source "ChessBase"]
[SourceQuality "1"]
[TimeControl "40/5400+30:900+30"]

{[%evp 9,84,-16,-6,-39,-27,-33,0,-29,-29,-37,-39,-54,-52,-56,-42,-51,-36,-52,-45,-64,-60,-85,-84,-110,-115,-137,-133,-137,-132,-131,-104,-139,-92,-115,-12,-135,-29,-20,-28,-447,-444,-462,-509,-522,-520,-485,-513,-472,-514,-503,-488,-722,-695,-708,-622,-629,-616,-549,-358,-351,-345,-317,-204,-200,-198,-192,-146,-145,-50,-39,0,0,0,-21,0,0,0]} 1. e4 {[%emt 0:00:03]} c5 {[%emt 0:00:09]} 2. c3 {[%emt 0:00:04]} d5 {[%emt 0:00:11]} 3. e5 {[%emt 0:00:04]} Nc6 {[%emt 0:01:11]} 4. Nf3 {[%emt 0:00:06]} Bf5 {[%emt 0:04:01]} 5. Bb5 {[%emt 0:08:28]} Qb6 {[%emt 0:03:36]} 6. Bxc6+ {[%emt 0:03:16] B22: Sicilian: 2 c3.} bxc6 {[%emt 0:00:38]} 7. d4 {[%emt 0:00:51] [#]} cxd4 $146 {[%emt 0:03:05]} ({Predecessor:} 7... e6 8. O-O h6 9. a3 a5 10. Nbd2 a4 11. b4 axb3 12. Qxb3 Qxb3 13. Nxb3 c4 {0-1 (54) Geibel,H (1260)-Duemmke,J (1959) Gross Groenau 2008}) 8. Nxd4 {[%emt 0:00:09]} Bd7 {[%emt 0:02:57]} 9. O-O {[%emt 0:08:15]} e6 {[%emt 0:02:28]} 10. b4 {[%emt 0:11:33]} a5 {[%emt 0:05:32]} 11. Be3 {[%emt 0:00:30][%cal Od4e6] Black must now prevent Nxe6!} Qc7 {[%emt 0:05:22]} 12. bxa5 {[%emt 0:03:28]} Qxe5 {[%emt 0:03:23]} 13. Nb3 {[%emt 0:00:18]} Nf6 {[%emt 0:05:33]} (13... Bd6 $5 14. g3 Qf6 $11) 14. Bd4 {[%emt 0:11:54]} Qc7 $40 {[%emt 0:04:07][%mdl 128] Black has some attack.} 15. Bb6 {[%emt 0:01:26]} Qb8 {[%emt 0:02:42]} 16. Qd4 {[%emt 0:08:28]} Bd6 {[%emt 0:02:01]} 17. h3 {[%emt 0:00:44]} e5 {[%emt 0:03:14]} 18. Qe3 {[%emt 0:00:09]} O-O {[%emt 0:02:35]} 19. N1d2 {[%emt 0:05:04]} Nh5 {[%emt 0:05:00]} 20. Nc5 {[%emt 0:02:56]} Be6 {[%emt 0:03:26]} ({Black should play} 20... Bc8 21. Rfe1 e4) 21. Rab1 {[%emt 0:00:57]} Qe8 {[%emt 0:03:00]} ({Black should try} 21... Bf5 $17 22. Rb3 Nf4) 22. a6 {[%emt 0:03:42] [#]} (22. Nb7 $1 $11 {was the only way to keep the balance.} Bb8 23. Bc5) 22... f5 {[%emt 0:01:54]} ({Better is} 22... e4 $1 $17 {And now ...f5 would win.} 23. Nb7 Bf4) 23. Nb7 $1 $11 {[%emt 0:03:27] Pair of Knights!} f4 {[%emt 0:09:14]} 24. Qe2 {[%emt 0:10:17][%mdl 8192] [#]} (24. Nxd6 $11 fxe3 25. Nxe8 Rfxe8 26. Bxe3 Rxa6 27. Rb2) 24... Qg6 $1 $19 {[%emt 0:04:26]} 25. Kh1 {[%emt 0:01:27]} (25. f3 Ng3) 25... f3 {[%emt 0:07:50]} 26. Nxf3 {[%emt 0:03:37]} Nf4 $1 {[%emt 0:01:59][%csl Gf4,LRe2,LRg2][%cal Rg6g2,Bh5f4,Bf4e2,Be2c3,Bc3a4,Ba4c5,Bc5d7,Bd7f8,Bf8g6][%mdl 32]} 27. Nh4 {[%emt 0:00:07]} Qxb1 {[%emt 0:01:06]} (27... Nxe2 28. Nxg6 hxg6 29. Nxd6 $17) 28. Rxb1 {[%emt 0:01:40]} Nxe2 {[%emt 0:00:06]} 29. Nxd6 {[%emt 0:00:21]} Nxc3 {[%emt 0:01:58]} 30. Rb3 {[%emt 0:02:49]} (30. Re1 $142 Rxa6 31. Bc5) 30... Rxa6 {[%emt 0:02:06] Strongly threatening ...d4.} 31. Bc5 {[%emt 0:01:24]} Na4 {[%emt 0:01:21]} 32. Nb7 {[%emt 0:00:15]} Rf7 {[%emt 0:02:28]} 33. Bd6 {[%emt 0:02:34]} Bc8 {[%emt 0:01:16]} 34. Nc5 {[%emt 0:02:13]} Nxc5 {[%emt 0:00:22]} ({Not} 34... Rxf2 35. Nxa6 Bxa6 36. Rb8+ Kf7 37. Rf8+ Ke6 38. Rxf2 $17) 35. Rb8 {[%emt 0:00:14]} Nd7 {[%emt 0:02:23]} 36. Rxc8+ {[%emt 0:00:22]} Nf8 {[%emt 0:00:08]} 37. Nf3 {[%emt 0:01:24]} Rf6 {[%emt 0:02:23]} (37... e4 $19 38. Ne5 Rxf2) 38. Bxe5 $17 {[%emt 0:02:37]} Re6 {[%emt 0:00:33]} (38... Rxa2 $6 39. Bxf6 gxf6 40. Rxc6 $11) (38... Rf5 $17 {Hoping for ...Kf7.} 39. Bd6 Rxa2) 39. Rc7 $15 {[%emt 0:00:30]} Ng6 {[%emt 0:02:47]} ({Much weaker is} 39... Rxa2 40. Rxg7+ Kh8 41. Rg4+ Rxe5 42. Nxe5 Rxf2 43. Nxc6 $11) 40. Rc8+ $1 {[%emt 0:00:52] The position is equal.} Nf8 {[%emt 0:00:41]} 41. Rc7 {[%emt 0:15:53]} Ng6 {[%emt 0:04:07]} 42. Rc8+ $1 {[%emt 0:00:00]} Nf8 {[%emt 0:00:06] Weighted Error Value: White=0.31/Black=0.30} 1/2-1/2

[Event "DPEM German Cup 2022"]
[Site "Magdeburg"]
[Date "2022.08.19"]
[Round "3.2"]
[White "Uphoff, Lennart"]
[Black "Woelk, Tom-Frederic"]
[Result "1/2-1/2"]
[ECO "B22"]
[WhiteElo "2173"]
[BlackElo "2314"]
[Annotator "TA"]
[PlyCount "89"]
[EventDate "2022.08.10"]
[EventType "k.o."]
[EventCountry "GER"]
[SourceTitle "playchess.com"]
[Source "ChessBase"]
[SourceQuality "1"]
[TimeControl "40/5400+30:900+30"]

{[%evp 16,89,12,4,20,11,24,24,48,18,22,30,27,27,18,18,22,22,24,-8,-24,-9,0,0,0,0,0,0,0,0,12,12,13,8,8,10,8,16,71,54,80,82,85,89,72,78,95,0,0,0,0,0,0,0,0,0,0,0,0,0,0,0,0,0,0,0,0,0,0,-10,-10,-10,-10,-10,-10,-10]} 1. e4 {[%emt 0:00:03][%cal Be2e4,Be4e5][%mdl 32]} c5 {[%emt 0:01:34]} 2. Nf3 {[%emt 0:00:05]} e6 {[%emt 0:05:17]} 3. c3 {[%emt 0:00:10]} Nf6 {[%emt 0:01:01]} 4. e5 {[%emt 0:00:06]} Nd5 {[%emt 0:00:03]} 5. g3 {[%emt 0:00:17]} Nc6 {[%emt 0:02:16]} 6. Bg2 {[%emt 0:00:43]} d6 {[%emt 0:00:19]} 7. exd6 {[%emt 0:00:08]} Bxd6 {[%emt 0:00:05]} 8. O-O {[%emt 0:00:26]} O-O {[%emt 0:02:03]} 9. d4 {[%emt 0:00:11]} Qc7 {[%emt 0:10:42] B22: Sicilian: 2 c3.} 10. c4 {[%emt 0:03:18]} Nde7 {[%emt 0:09:28]} 11. Nc3 {[%emt 0:04:02]} a6 {[%emt 0:07:08] Prevents Nb5. White has an edge.} 12. Ne4 {[%emt 0:27:47]} Nxd4 {[%emt 0:02:30]} 13. Nxd4 {[%emt 0:19:48]} cxd4 {[%emt 0:00:07]} 14. Qxd4 {[%emt 0:02:51] [#]} Nf5 $146 {[%emt 0:06:15]} ({Predecessor:} 14... Be5 15. Qc5 Nc6 16. Rd1 Qa5 17. Bd2 Qxc5 18. Nxc5 Bxb2 19. Rab1 Bd4 20. Nxb7 Bd7 {1-0 (28) Aloma Vidal,R (2437)-Dastan,B (2553) Chess.com INT 2022}) 15. Qd3 {[%emt 0:02:33]} Be7 {[%emt 0:02:41]} 16. Rd1 {[%emt 0:02:13]} h6 {[%emt 0:08:31]} 17. Bf4 {[%emt 0:17:27]} e5 {[%emt 0:00:37]} 18. Bd2 {[%emt 0:00:19]} Be6 {[%emt 0:08:00]} 19. Nc3 $1 {[%emt 0:02:17]} Qxc4 {[%emt 0:01:21]} 20. Qxc4 {[%emt 0:00:18]} Bxc4 {[%emt 0:00:05]} 21. b3 $36 {[%emt 0:01:18][%mdl 2048] White is pushing.} Be6 {[%emt 0:03:21]} 22. Bxb7 {[%emt 0:00:04]} Ra7 {[%emt 0:00:28][%cal Ba8a7,Ba7c7,Bc7c2][%mdl 32]} 23. Bd5 {[%emt 0:00:41]} Rc7 {[%emt 0:07:44]} 24. Bxe6 {[%emt 0:02:37]} fxe6 {[%emt 0:00:16]} 25. Ne4 {[%emt 0:01:55]} Nd4 {[%emt 0:04:36]} 26. Kg2 {[%emt 0:03:31]} Ba3 {[%emt 0:05:57]} (26... Rc2 $11 {keeps the balance.}) 27. Bc1 $16 {[%emt 0:01:33]} Be7 {[%emt 0:04:39]} 28. Bb2 {[%emt 0:00:54]} Rc2 {[%emt 0:00:20]} 29. Bxd4 {[%emt 0:06:17]} exd4 {[%emt 0:00:07]} 30. Rxd4 {[%emt 0:00:11]} Bf6 {[%emt 0:00:25]} 31. Nxf6+ {[%emt 0:00:11]} (31. Rc4 $16 Rxf2+ 32. Nxf2 (32. Kxf2 Bxa1+ 33. Ke3 e5 $16) 32... Bxa1 33. Rc6) 31... Rxf6 $11 {[%emt 0:00:04] The position is equal.} 32. Rf4 {[%emt 0:00:22]} Rxf4 {[%emt 0:00:12]} 33. gxf4 {[%emt 0:00:05][%mdl 4096] Endgame KR-KR} Rb2 {[%emt 0:00:52]} 34. Kg3 {[%emt 0:01:16]} Kf7 {[%emt 0:00:07]} 35. h3 {[%emt 0:00:48]} Kf6 {[%emt 0:00:08]} 36. Kf3 {[%emt 0:00:39]} Kf5 {[%emt 0:02:01]} 37. Kg3 {[%emt 0:00:12]} a5 {[%emt 0:01:47]} 38. Kf3 {[%emt 0:00:36]} Rc2 {[%emt 0:00:08]} 39. Kg3 {[%emt 0:00:22]} g6 {[%emt 0:00:27]} 40. h4 {[%emt 0:00:25]} h5 {[%emt 0:01:38]} 41. f3 {[%emt 0:04:50]} Rb2 {[%emt 0:01:48]} 42. Re1 {[%emt 0:00:35] [#] And now Re5+ would win.} Rxa2 {[%emt 0:00:04]} 43. Re5+ {[%emt 0:00:04]} Kf6 {[%emt 0:00:04]} 44. Rb5 {[%emt 0:00:09]} Ra1 {[%emt 0:04:01]} 45. Rc5 {[%emt 0:00:25] Weighted Error Value: White=0.07 (flawless) /Black=0.07 (flawless)} 1/2-1/2

[Event "DPEM German Cup 2022"]
[Site "Magdeburg"]
[Date "2022.08.19"]
[Round "3.3"]
[White "Ehmann, Thilo"]
[Black "Puerckhauer, Soeren"]
[Result "1-0"]
[ECO "B15"]
[WhiteElo "2391"]
[BlackElo "2158"]
[Annotator "TA"]
[PlyCount "43"]
[EventDate "2022.08.10"]
[EventType "k.o."]
[EventCountry "GER"]
[SourceTitle "playchess.com"]
[Source "ChessBase"]
[SourceQuality "1"]
[TimeControl "40/5400+30:900+30"]

{[%evp 12,43,0,0,7,0,0,13,8,12,33,41,27,33,41,41,54,41,255,255,256,247,253,253,253,261,314,315,366,362,377,344,374,372]} 1. e4 {[%emt 0:00:00]} d5 {[%emt 0:00:07]} 2. exd5 {[%emt 0:00:12]} Qxd5 {[%emt 0:00:06]} 3. Nc3 {[%emt 0:00:04]} Qd8 {[%emt 0:00:07]} 4. d4 {[%emt 0:00:07]} c6 {[%emt 0:00:14]} 5. Ne4 {[%emt 0:00:19]} Nf6 {[%emt 0:03:08]} 6. Ng3 {[%emt 0:00:47]} e5 {[%emt 0:06:09]} 7. Be3 {[%emt 0:02:27]} exd4 {[%emt 0:02:24] B15: Caro-Kann: 3 Nc3: 3...g6 and 3...dxe4 4 Nxe4 Nf6 5 Nxf6+ exf6.} 8. Qxd4 {[%emt 0:04:11]} Qxd4 {[%emt 0:10:59]} (8... Be7 {feels hotter.} 9. Nf3 O-O 10. Bc4 b5) 9. Bxd4 {[%emt 0:00:43] [#]} Be6 $146 {[%emt 0:00:20] Prevents Bc4. The position is equal.} ({Predecessor (3):} 9... Be7 10. a4 Be6 11. N1e2 c5 12. Bc3 O-O 13. Nf4 Bd7 14. Bc4 Bd6 15. Nfe2 Bxg3 16. Nxg3 Re8+ {1-0 (50) Saranya,J (2049)-Mahalakshmi,M (2198) Jaipur 2018}) 10. Nf3 {[%emt 0:03:17]} h6 {[%emt 0:03:55]} 11. Bxf6 {[%emt 0:02:20]} gxf6 {[%emt 0:00:02]} 12. Nd4 {[%emt 0:01:20]} Bc5 {[%emt 0:01:23]} 13. O-O-O {[%emt 0:00:54]} Nd7 {[%emt 0:09:11]} 14. Ne4 {[%emt 0:03:57]} O-O-O $2 {[%emt 0:05:32] This costs Black the game.} (14... Bd5 $14) 15. Nxe6 $18 {[%emt 0:01:32]} fxe6 {[%emt 0:00:02] [#]} 16. Rxd7 $1 {[%emt 0:00:35][%mdl 512]} Rxd7 {[%emt 0:00:01]} 17. Nxc5 {[%emt 0:00:08]} Re7 {[%emt 0:00:10]} 18. Bc4 {[%emt 0:01:04]} e5 {[%emt 0:00:06]} 19. Bd3 {[%emt 0:00:34]} b6 {[%emt 0:00:24]} 20. Bf5+ {[%emt 0:00:08]} Kc7 {[%emt 0:00:12]} 21. Ne4 {[%emt 0:00:08]} h5 {[%emt 0:01:38]} 22. h4 {[%emt 0:00:46] Weighted Error Value: White=0.03 (flawless) /Black=0.45} 1-0

[Event "DPEM German Cup 2022"]
[Site "Magdeburg"]
[Date "2022.08.19"]
[Round "3.4"]
[White "Noetzel, Felix"]
[Black "Mueer, Sebastian"]
[Result "1/2-1/2"]
[ECO "B80"]
[WhiteElo "2124"]
[BlackElo "2161"]
[Annotator "TA"]
[PlyCount "116"]
[EventDate "2022.08.10"]
[EventType "k.o."]
[EventCountry "GER"]
[SourceTitle "playchess.com"]
[Source "ChessBase"]
[SourceQuality "1"]
[TimeControl "40/5400+30:900+30"]

{[%evp 12,116,23,0,37,10,61,56,76,31,53,35,35,35,35,34,40,32,48,35,64,69,80,67,82,26,85,85,85,87,87,72,110,36,36,36,74,58,64,67,59,52,52,23,19,26,37,31,23,22,22,18,18,18,18,19,27,24,38,0,0,0,0,0,8,0,0,0,0,0,0,0,0,0,0,0,0,0,0,0,14,14,20,49,51,53,51,34,49,53,461,0,0,0,0,0,0,0,0,0,0,0,0,0,0,0,0]} 1. e4 {[%emt 0:00:03]} c5 {[%emt 0:05:06]} 2. Nf3 {[%emt 0:00:07]} d6 {[%emt 0:00:10]} 3. d4 {[%emt 0:00:05]} cxd4 {[%emt 0:00:13]} 4. Nxd4 {[%emt 0:00:05]} Nf6 {[%emt 0:00:10]} 5. Nc3 {[%emt 0:00:05]} a6 {[%emt 0:00:12]} 6. Be3 {[%emt 0:00:39]} e6 {[%emt 0:00:18]} 7. f3 {[%emt 0:01:17]} h5 {[%emt 0:00:08] B80: Sicilian Scheveningen: 6 g3 and 6 Be3, including English Attack.} 8. Be2 {[%emt 0:03:20] [#]} d5 $146 {[%emt 0:01:24]} ({Black should try} 8... b5 $11) ({Predecessor:} 8... b5 9. a3 Nbd7 10. O-O Qc7 11. a4 b4 12. Na2 d5 13. c3 dxe4 14. Nxb4 Bd6 15. f4 {0-1 (36) Fier,A (2564)-Van Foreest,J (2691) Chess.com INT 2021}) 9. exd5 $14 {[%emt 0:03:14]} exd5 {[%emt 0:00:22] White is slightly better.} 10. O-O {[%emt 0:08:27]} Bd6 {[%emt 0:00:43]} 11. Bg5 {[%emt 0:13:10]} Nc6 {[%emt 0:09:41]} 12. Kh1 {[%emt 0:08:40]} Be7 {[%emt 0:14:40]} 13. Re1 {[%emt 0:05:51]} O-O {[%emt 0:04:55]} 14. Qd2 {[%emt 0:03:09]} Re8 {[%emt 0:08:21]} 15. Rad1 {[%emt 0:05:08]} Nxd4 {[%emt 0:07:54]} 16. Qxd4 {[%emt 0:00:11]} Be6 {[%emt 0:00:05]} 17. Bd3 {[%emt 0:05:54]} Qd7 {[%emt 0:18:49]} 18. Qf4 {[%emt 0:19:42] 0x0.0020b42c5e22dp-1022s more active pieces.} (18. a3 $16) 18... Rad8 {[%emt 0:07:56]} (18... d4 $11 {keeps the balance.} 19. Bxf6 Bxf6) 19. Ne2 $16 {[%emt 0:03:00]} Nh7 {[%emt 0:04:09]} 20. Bxe7 {[%emt 0:00:51]} Qxe7 {[%emt 0:00:08]} 21. Nd4 {[%emt 0:01:45]} Qd6 {[%emt 0:01:34]} 22. Qh4 {[%emt 0:03:59]} ({Better is} 22. Nxe6 $16 {Black must now prevent Bxh7+.} fxe6 23. Bxh7+ Kxh7 24. Qf7) 22... Nf6 $14 {[%emt 0:00:23]} 23. c3 {[%emt 0:00:07]} b5 {[%emt 0:01:02]} 24. a3 {[%emt 0:00:33]} Bd7 {[%emt 0:01:44]} 25. Kg1 {[%emt 0:05:07][%cal Bh1g1,Bg1f2,Bf2e3,Be3f4,Bf4g5,Bg5f6][%mdl 32]} g6 {[%emt 0:00:01]} 26. Qg5 {[%emt 0:01:52]} Kg7 {[%emt 0:00:23]} 27. Qg3 {[%emt 0:03:15]} Qxg3 {[%emt 0:02:03]} 28. hxg3 {[%emt 0:00:01]} Kf8 {[%emt 0:04:35]} 29. Kf2 {[%emt 0:00:04]} Rxe1 {[%emt 0:01:38]} 30. Rxe1 {[%emt 0:00:01]} Re8 {[%emt 0:00:55]} 31. Rxe8+ {[%emt 0:01:42]} Nxe8 $11 {[%emt 0:00:50][%mdl 4096] Endgame KBN-KBN} 32. Ke3 {[%emt 0:02:22]} Ke7 {[%emt 0:00:03]} 33. Nc2 {[%emt 0:01:17]} Kd6 {[%emt 0:00:22]} 34. Kf4 {[%emt 0:01:45]} Nc7 {[%emt 0:00:17]} 35. Kg5 {[%emt 0:00:22]} Ne6+ {[%emt 0:05:49]} 36. Kf6 {[%emt 0:00:02]} Nc5 {[%emt 0:00:08]} 37. Ne1 {[%emt 0:01:00]} Be6 {[%emt 0:00:14]} 38. Bc2 {[%emt 0:00:04]} Nd7+ {[%emt 0:00:36]} 39. Kg7 {[%emt 0:00:40]} Ke7 {[%emt 0:00:44]} 40. Nd3 {[%emt 0:00:51]} Bf5 {[%emt 0:01:03]} 41. Nb4 {[%emt 0:15:22][%csl LRa6,LRd5]} Bxc2 {[%emt 0:02:23]} 42. Nxc2 {[%emt 0:00:00] KN-KN} Nc5 {[%emt 0:00:30]} 43. Nb4 {[%emt 0:00:00]} Ke6 {[%emt 0:00:12]} 44. Kf8 {[%emt 0:00:00]} a5 {[%emt 0:06:37]} 45. Nc6 {[%emt 0:00:00]} Nd3 {[%emt 0:00:45]} 46. Nd4+ {[%emt 0:00:00]} Kf6 {[%emt 0:00:16]} 47. b4 {[%emt 0:00:00]} axb4 {[%emt 0:00:01]} 48. axb4 {[%emt 0:00:00]} Ne1 {[%emt 0:01:20]} 49. Nxb5 {[%emt 0:00:00] Hoping for Nd4.} Nxg2 {[%emt 0:00:05]} 50. Nc7 {[%emt 0:00:00]} Ke5 $2 {[%emt 0:04:12][%mdl 8192] [#]} (50... Ne3 $14) 51. Kxf7 $2 {[%emt 0:01:19]} (51. f4+ $1 $18 Kd6 52. Nb5+ (52. Kxf7 Kxc7 53. Kxg6 h4 $11) 52... Kd7 53. Kxf7) 51... g5 $1 {[%emt 0:00:01] aiming for ...h4. The position is equal.} 52. Ne8 {[%emt 0:03:05] b5 is the strong threat.} Ne3 {[%emt 0:01:10] Strongly threatening ...h4.} 53. b5 {[%emt 0:01:14]} Nc4 {[%emt 0:00:01] Threatens to win with ...h4.} 54. Nf6 {[%emt 0:00:39]} h4 {[%emt 0:01:33]} 55. Ng4+ {[%emt 0:00:30]} Kf5 {[%emt 0:01:13]} 56. Nh6+ {[%emt 0:00:40]} Ke5 {[%emt 0:00:01]} 57. Ng4+ {[%emt 0:00:10]} Kf5 {[%emt 0:00:01]} 58. Nh6+ {[%emt 0:00:59]} Ke5 {[%emt 0:00:35] Weighted Error Value: White=0.26 (precise) /Black=0.19 (very precise)} 1/2-1/2